fUST/lending_fUST_20241203
["ID","MTS","AMOUNT","RATE_DAILY","PERIOD"]
[344020892,1733209842771,-500.0,0.00027397,7]
[344020893,1733209842781,-500.0,0.00027397,7]
[344020894,1733209842791,-640.52,0.00027397,7]
[344020895,1733209842800,-501.5913009,0.00027397,7]
[344020896,1733209842810,-500.0,0.00027397,7]
[344020897,1733209842820,-500.0,0.00027397,7]
[344020898,1733209842830,-500.0,0.00027397,7]
[344020899,1733209842840,-500.0,0.00027397,7]
[344020901,1733209842850,-656.67,0.00027397,7]
[344020903,1733209842859,-500.0,0.00027397,7]
[344020905,1733209842868,-500.0,0.00027397,7]
[344020906,1733209842878,-500.0,0.00027397,7]
[344020907,1733209842888,-500.0,0.00027397,7]
[344020908,1733209842899,-507.98306956,0.00027397,7]
[344020909,1733209842909,-188.56188422,0.00027397,7]
[344020910,1733209842919,-500.0,0.00027397,7]
[344020911,1733209842929,-500.0,0.00027397,7]
[344020912,1733209842939,-500.0,0.00027397,7]
[344020913,1733209842949,-500.0,0.00027397,7]
[344020914,1733209842959,-500.0,0.00027397,7]
[344020915,1733209842968,-506.78851728,0.00027397,7]
[344020916,1733209842978,-500.0,0.00027397,7]
[344020917,1733209842992,-280.24984523,0.00027397,7]
[344020918,1733209843001,-502.31598679,0.00027397,7]
[344020919,1733209843011,-500.0,0.00027397,7]
[344020920,1733209843020,-500.0,0.00027397,7]
[344020921,1733209843029,-549.54180952,0.00027397,7]
[344020922,1733209843039,-500.0,0.00027397,7]
[344020923,1733209843048,-222.659587,0.00027397,7]
[344020924,1733209843058,-222.659587,0.00027397,7]
[344020926,1733209843068,-500.0,0.00027397,7]
[344020927,1733209843077,-502.31619159,0.00027397,7]
[344020928,1733209843087,-500.0,0.00027397,7]
[344020929,1733209843097,-500.0,0.00027397,7]
[344020931,1733209843107,-500.0,0.00027397,7]
[344020932,1733209843116,-500.0,0.00027397,7]
[344020933,1733209843126,-222.659587,0.00027397,7]
[344020934,1733209843137,-222.659591,0.00027397,7]
[344020935,1733209843147,-500.0,0.00027397,7]
[344020937,1733209843157,-540.47813129,0.00027397,7]
[344020939,1733209843166,-648.41,0.00027397,7]
[344020940,1733209843176,-500.0,0.00027397,7]
[344020942,1733209843187,-500.0,0.00027397,7]
[344020944,1733209843197,-500.0,0.00027397,7]
[344020946,1733209843206,-444.967813,0.00027397,7]
[344020948,1733209843216,-500.0,0.00027397,7]
[344020951,1733209843226,-502.04646033,0.00027397,7]
[344020953,1733209843240,-444.967813,0.00027397,7]
[344020956,1733209843254,-501.9880161,0.00027397,7]
[344020957,1733209843264,-507.13693968,0.00027397,7]
[344020958,1733209843275,-505.9912587,0.00027397,7]
[344020959,1733209843285,-500.0,0.00027397,7]
[344020960,1733209843295,-500.0,0.00027397,7]
[344020961,1733209843304,-500.0,0.00027397,2]
[344020963,1733209843371,-505.79154834,0.00027397,7]
[344020964,1733209843391,-502.01761347,0.00027397,7]
[344020966,1733209843401,-500.0,0.00027397,7]
[344020968,1733209843411,-200.0,0.00027397,7]
[344020969,1733209843421,-500.0,0.00027397,7]
[344020970,1733209843431,-7919.88,0.00027397,7]
[344020971,1733209843441,-500.0,0.00027397,7]
[344020972,1733209843451,-503.09126033,0.00027397,7]
[344020974,1733209843460,-500.0,0.00027397,7]
[344020976,1733209843470,-500.0,0.00027397,7]
[344020977,1733209843486,-507.76129017,0.00027397,7]
[344020979,1733209843496,-500.0,0.00027397,7]
[344020980,1733209843506,-500.0,0.00027397,7]
[344020981,1733209843516,-500.0,0.00027397,7]
[344020982,1733209843525,-501.18523045,0.00027397,7]
[344020984,1733209843536,-500.0,0.00027397,7]
[344020985,1733209843547,-500.0,0.00027397,7]
[344020986,1733209843557,-500.0,0.00027397,7]
[344020988,1733209843568,-500.0,0.00027397,7]
[344020989,1733209843578,-500.0,0.00027397,7]
[344020991,1733209843588,-500.0,0.00027397,7]
[344020992,1733209843598,-505.75222231,0.00027397,7]
[344020994,1733209843608,-641.792493,0.00027397,7]
[344020995,1733209843618,-502.1835736,0.00027397,7]
[344020996,1733209843628,-641.792485,0.00027397,7]
[344020997,1733209843639,-500.0,0.00027397,7]
[344020998,1733209843649,-500.0,0.00027397,7]
[344020999,1733209843659,-500.0,0.00027397,7]
[344021000,1733209843669,-500.0,0.00027397,7]
[344021001,1733209843679,-500.0,0.00027397,7]
[344021002,1733209843689,-507.77348322,0.00027397,7]
[344021003,1733209843698,-500.0,0.00027397,7]
[344021004,1733209843707,-500.0,0.00027397,7]
[344021005,1733209843717,-500.0,0.00027397,7]
[344021006,1733209843726,-500.0,0.00027397,7]
[344021007,1733209843741,-3362.04,0.00027397,7]
[344021008,1733209843751,-501.95080589,0.00027397,7]
[344021009,1733209843761,-500.0,0.00027397,7]
[344021010,1733209843771,-500.0,0.00027397,7]
[344021011,1733209843781,-520.23417019,0.00027397,7]
[344021012,1733209843791,-500.0,0.00027397,7]
[344021013,1733209843801,-507.99443963,0.00027397,7]
[344021014,1733209843811,-502.22108251,0.00027397,7]
[344021015,1733209843821,-502.63204216,0.00027397,7]
[344021016,1733209843833,-501.06821044,0.00027397,7]
[344021017,1733209843843,-827.86,0.00027397,7]
[344021018,1733209843853,-260.55191927,0.00027397,7]
[344021019,1733209843863,-500.0,0.00027397,7]
[344021020,1733209843873,-502.17706118,0.00027397,7]
[344021021,1733209843883,-503.25442547,0.00027397,7]
[344021022,1733209843893,-500.0,0.00027397,7]
[344021023,1733209843903,-500.0,0.00027397,7]
[344021024,1733209843912,-500.0,0.00027397,7]
[344021025,1733209843922,-500.0,0.00027397,7]
[344021026,1733209843932,-500.0,0.00027397,7]
[344021027,1733209843941,-500.0,0.00027397,7]
[344021028,1733209843951,-500.0,0.00027397,7]
[344021029,1733209843960,-239.15417626,0.00027397,7]
[344021030,1733209843970,-150.5640028,0.00027397,2]
[344021031,1733209843981,-502.91970132,0.00027397,7]
[344021032,1733209843992,-500.0,0.00027397,7]
[344021033,1733209844007,-150.17,0.00027397,7]
[344021034,1733209844018,-500.0,0.00027397,7]
[344021035,1733209844028,-502.30664268,0.00027397,7]
[344021036,1733209844038,-155.44847042,0.00027397,7]
[344021037,1733209844048,-500.0,0.00027397,7]
[344021038,1733209844059,-500.0,0.00027397,7]
[344021039,1733209844069,-500.0,0.00027397,7]
[344021040,1733209844079,-559.53,0.00027397,7]
[344021041,1733209844089,-500.0,0.00027397,7]
[344021042,1733209844099,-500.71513978,0.00027397,7]
[344021043,1733209844110,-537.60941263,0.00027397,7]
[344021044,1733209844120,-500.0,0.00027397,7]
[344021045,1733209844130,-501.75552201,0.00027397,7]
[344021046,1733209844139,-500.0,0.00027397,7]
[344021047,1733209844149,-500.0,0.00027397,7]
[344021048,1733209844162,-543.80236855,0.00027397,7]
[344021049,1733209844172,-501.82604224,0.00027397,7]
[344021050,1733209844183,-540.21622877,0.00027397,7]
[344021051,1733209844193,-436.92169019,0.00027397,7]
[344021052,1733209844203,-500.0,0.00027397,7]
[344021053,1733209844212,-596.24098165,0.00027397,7]
[344021054,1733209844222,-500.0,0.00027397,7]
[344021055,1733209844234,-176.53433958,0.00027397,7]
[344021056,1733209844247,-500.0,0.00027397,7]
[344021057,1733209844257,-211.95740136,0.00027397,2]
[344021058,1733209844267,-151.0,0.00027397,7]
[344021059,1733209844280,-151.0,0.00027397,7]
[344021060,1733209844291,-151.209604,0.00027397,7]
[344021061,1733209844302,-172.837908,0.00027397,7]
[344021063,1733209844313,-151.0,0.00027667,6]
[344021064,1733209844324,-150.17,0.00027671,7]
[344021065,1733209844336,-500.0,0.00027671,7]
[344021066,1733209844346,-500.0,0.00027671,7]
[344021067,1733209844356,-502.61257575,0.00027671,7]
[344021068,1733209844367,-500.0,0.00027671,7]
[344021069,1733209844376,-510.006581,0.00027671,7]
[344021070,1733209844387,-513.85890965,0.00027671,7]
[344021071,1733209844397,-500.0,0.00027671,7]
[344021072,1733209844408,-515.60676176,0.00027671,7]
[344021073,1733209844418,-500.0,0.00027671,7]
[344021074,1733209844428,-500.0,0.00027671,7]
[344021075,1733209844438,-500.0,0.00027671,7]
[344021076,1733209844448,-500.52530018,0.00027671,7]
[344021077,1733209844458,-500.0,0.00027671,7]
[344021078,1733209844467,-500.0,0.00027671,7]
[344021079,1733209844476,-255.77521491,0.00027671,7]
[344021080,1733209844489,-500.0,0.00027671,7]
[344021081,1733209844500,-523.94361315,0.00027671,7]
[344021082,1733209844510,-502.78299422,0.00027671,7]
[344021083,1733209844520,-502.62860772,0.00027671,7]
[344021084,1733209844531,-500.0,0.00027671,7]
[344021085,1733209844540,-507.08598897,0.00027671,7]
[344021086,1733209844550,-502.65588424,0.00027671,7]
[344021087,1733209844560,-500.0,0.00027671,7]
[344021088,1733209844570,-500.0,0.00027671,7]
[344021089,1733209844580,-500.0,0.00027671,7]
[344021090,1733209844589,-507.20542614,0.00027671,7]
[344021091,1733209844600,-504.87864754,0.00027671,7]
[344021092,1733209844609,-505.01950321,0.00027671,7]
[344021093,1733209844619,-520.00181144,0.00027671,7]
[344021094,1733209844629,-500.0,0.00027671,7]
[344021095,1733209844640,-500.0,0.00027671,7]
[344021096,1733209844650,-500.0,0.00027671,7]
[344021097,1733209844660,-500.0,0.00027671,7]
[344021098,1733209844671,-500.0,0.00027671,7]
[344021099,1733209844681,-543.70707025,0.00027671,7]
[344021100,1733209844691,-500.0,0.00027671,7]
[344021101,1733209844701,-500.0,0.00027671,7]
[344021102,1733209844711,-501.93836469,0.00027671,7]
[344021103,1733209844720,-500.0,0.00027671,7]
[344021104,1733209844729,-500.0,0.00027671,7]
[344021105,1733209844747,-273.94022714,0.00027671,7]
[344021106,1733209844758,-500.0,0.00027671,7]
[344021107,1733209844767,-500.0,0.00027671,7]
[344021108,1733209844777,-500.0,0.00027671,7]
[344021109,1733209844787,-500.0,0.00027671,7]
[344021110,1733209844798,-500.0,0.00027671,7]
[344021111,1733209844808,-505.0682684,0.00027671,7]
[344021112,1733209844818,-500.0,0.00027671,7]
[344021113,1733209844827,-503.29665003,0.00027671,7]
[344021114,1733209844837,-500.0,0.00027671,7]
[344021115,1733209844847,-172.64965722,0.00027671,7]
[344021116,1733209844856,-500.0,0.00027671,2]
[344021117,1733209844866,-530.35754393,0.00027671,7]
[344021118,1733209844876,-500.0,0.00027671,7]
[344021119,1733209844885,-500.0,0.00027671,7]
[344021120,1733209844895,-500.0,0.00027671,7]
[344021121,1733209844905,-523.26345905,0.00027671,7]
[344021122,1733209844915,-500.0,0.00027671,7]
[344021123,1733209844925,-500.0,0.00027671,7]
[344021124,1733209844935,-500.0,0.00027671,7]
[344021125,1733209845014,-505.23561382,0.00027671,7]
[344021126,1733209845024,-500.0,0.00027671,7]
[344021127,1733209845034,-504.76914564,0.00027671,7]
[344021128,1733209845043,-507.35432977,0.00027671,7]
[344021129,1733209845053,-500.0,0.00027671,7]
[344021130,1733209845064,-500.0,0.00027671,7]
[344021131,1733209845073,-500.0,0.00027671,7]
[344021132,1733209845083,-500.0,0.00027671,7]
[344021133,1733209845092,-510.96611377,0.00027671,7]
[344021134,1733209845102,-510.36193903,0.00027671,7]
[344021135,1733209845111,-501.0821883,0.00027671,7]
[344021136,1733209845121,-500.0,0.00027671,7]
[344021137,1733209845130,-500.0,0.00027671,7]
[344021138,1733209845139,-500.0,0.00027671,7]
[344021139,1733209845148,-500.8883219,0.00027671,7]
[344021140,1733209845158,-504.97473732,0.00027671,7]
[344021141,1733209845168,-500.0,0.00027671,7]
[344021142,1733209845178,-503.13496291,0.00027671,7]
[344021143,1733209845187,-501.70396133,0.00027671,7]
[344021144,1733209845196,-500.0,0.00027671,7]
[344021145,1733209845206,-500.0,0.00027671,7]
[344021146,1733209845215,-373.83658762,0.00027671,7]
[344021147,1733209845226,-505.65891126,0.00027671,7]
[344021148,1733209845242,-507.9789601,0.00027671,7]
[344021149,1733209845251,-616.08344865,0.00027671,7]
[344021150,1733209845261,-500.0,0.00027671,7]
[344021151,1733209845271,-500.0,0.00027671,7]
[344021152,1733209845280,-512.31842963,0.00027671,7]
[344021153,1733209845290,-500.0,0.00027671,7]
[344021154,1733209845299,-500.0,0.00027671,7]
[344021155,1733209845309,-228.34905181,0.00027671,7]
[344021156,1733209845320,-500.0,0.00027671,7]
[344021157,1733209845330,-506.31526538,0.00027671,7]
[344021158,1733209845340,-590.46313967,0.00027671,7]
[344021159,1733209845350,-383.15874931,0.00027671,7]
[344021160,1733209845360,-500.0,0.00027671,7]
[344021161,1733209845370,-639.36427847,0.00027671,7]
[344021162,1733209845380,-505.9346234,0.00027671,7]
[344021163,1733209845390,-500.0,0.00027671,7]
[344021164,1733209845399,-500.0,0.00027671,7]
[344021165,1733209845409,-500.0,0.00027671,7]
[344021166,1733209845419,-500.0,0.00027671,7]
[344021167,1733209845429,-500.0,0.00027671,7]
[344021168,1733209845438,-505.27045769,0.00027671,7]
[344021169,1733209845448,-449.61718372,0.00027671,7]
[344021170,1733209845458,-500.0,0.00027671,7]
[344021171,1733209845468,-502.11465459,0.00027671,7]
[344021172,1733209845478,-500.0,0.00027671,7]
[344021173,1733209845492,-507.57399157,0.00027671,7]
[344021174,1733209845502,-500.0,0.00027671,7]
[344021175,1733209845512,-500.0,0.00027671,7]
[344021176,1733209845522,-505.13129299,0.00027671,7]
[344021177,1733209845533,-500.0,0.00027671,7]
[344021178,1733209845543,-500.0,0.00027671,7]
[344021179,1733209845553,-500.0,0.00027671,7]
[344021180,1733209845563,-571.28106694,0.00027671,7]
[344021181,1733209845573,-500.0,0.00027671,7]
[344021182,1733209845583,-500.0,0.00027671,7]
[344021183,1733209845594,-166.58156391,0.00027671,7]
[344021184,1733209845604,-500.0,0.00027671,7]
[344021185,1733209845614,-513.73224709,0.00027671,7]
[344021186,1733209845624,-500.0,0.00027671,7]
[344021187,1733209845635,-500.0,0.00027671,7]
[344021188,1733209845646,-500.0,0.00027671,7]
[344021189,1733209845657,-500.0,0.00027671,7]
[344021190,1733209845667,-385.44671983,0.00027671,7]
[344021191,1733209845678,-556.82157758,0.00027671,7]
[344021192,1733209845688,-500.0,0.00027671,7]
[344021193,1733209845698,-640.61,0.00027671,7]
[344021194,1733209845709,-500.0,0.00027671,7]
[344021195,1733209845719,-296.02156317,0.00027671,7]
[344021196,1733209845729,-443.37033891,0.00027671,7]
[344021197,1733209845745,-522.33961546,0.00027671,7]
[344021199,1733209845763,-500.0,0.00027671,7]
[344021201,1733209845773,-470.77635489,0.00027671,7]
[344021202,1733209845784,-500.0,0.00027671,7]
[344021203,1733209845794,-500.0,0.00027671,7]
[344021204,1733209845804,-509.42899791,0.00027671,7]
[344021205,1733209845814,-500.0,0.00027671,7]
[344021206,1733209845824,-500.0,0.00027671,7]
[344021207,1733209845834,-500.0,0.00027671,7]
[344021208,1733209845844,-515.00143196,0.00027671,7]
[344021209,1733209845855,-500.0,0.00027671,7]
[344021212,1733209845866,-236.26318529,0.00027671,7]
[344021214,1733209845876,-500.0,0.00027671,7]
[344021216,1733209845886,-500.0,0.00027671,7]
[344021219,1733209845896,-500.0,0.00027671,7]
[344021221,1733209845907,-500.0,0.00027671,7]
[344021223,1733209845917,-500.0,0.00027671,7]
[344021225,1733209845927,-510.69278094,0.00027671,7]
[344021227,1733209845936,-500.0,0.00027671,7]
[344021229,1733209845946,-500.0,0.00027671,7]
[344021231,1733209845955,-500.0,0.00027671,7]
[344021233,1733209845965,-500.0,0.00027671,7]
[344021235,1733209845975,-500.0,0.00027671,7]
[344021236,1733209845986,-500.0,0.00027671,7]
[344021237,1733209845995,-500.0,0.00027671,7]
[344021238,1733209846006,-500.0,0.00027671,7]
[344021239,1733209846016,-502.64846252,0.00027671,7]
[344021240,1733209846026,-500.0,0.00027671,7]
[344021241,1733209846036,-500.0,0.00027671,7]
[344021242,1733209846047,-502.97005945,0.00027671,7]
[344021243,1733209846057,-504.97398945,0.00027671,7]
[344021244,1733209846067,-500.0,0.00027671,7]
[344021245,1733209846077,-500.0,0.00027671,7]
[344021247,1733209846087,-610.90079217,0.00027671,7]
[344021248,1733209846097,-500.0,0.00027671,7]
[344021249,1733209846107,-615.07928098,0.00027671,7]
[344021250,1733209846116,-500.0,0.00027671,7]
[344021251,1733209846126,-500.0,0.00027671,7]
[344021252,1733209846136,-500.0,0.00027671,7]
[344021253,1733209846145,-598.14,0.00027671,7]
[344021254,1733209846155,-500.0,0.00027671,7]
[344021255,1733209846165,-504.23513309,0.00027671,7]
[344021256,1733209846176,-500.0,0.00027671,7]
[344021258,1733209846185,-500.0,0.00027671,7]
[344021259,1733209846195,-500.0,0.00027671,7]
[344021261,1733209846205,-731.11,0.00027671,7]
[344021263,1733209846214,-175.41,0.00027671,7]
[344021264,1733209846224,-500.0,0.00027671,7]
[344021266,1733209846239,-500.0,0.00027671,7]
[344021268,1733209846249,-500.0,0.00027671,7]
[344021269,1733209846258,-500.0,0.00027671,7]
[344021270,1733209846268,-248.1908303,0.00027671,7]
[344021271,1733209846279,-600.0,0.00027671,7]
[344021272,1733209846289,-500.0,0.00027671,7]
[344021274,1733209846299,-500.0,0.00027671,7]
[344021275,1733209846309,-500.0,0.00027671,7]
[344021277,1733209846321,-500.0,0.00027671,7]
[344021279,1733209846331,-640.52,0.00027671,7]
[344021280,1733209846340,-500.0,0.00027671,7]
[344021281,1733209846350,-530.55479119,0.00027671,7]
[344021282,1733209846359,-656.67,0.00027671,7]
[344021283,1733209846369,-503.34219933,0.00027671,7]
[344021284,1733209846378,-500.0,0.00027671,7]
[344021285,1733209846388,-500.0,0.00027671,7]
[344021286,1733209846397,-500.0,0.00027671,7]
[344021287,1733209846407,-500.0,0.00027671,7]
[344021288,1733209846417,-500.0,0.00027671,7]
[344021289,1733209846427,-500.0,0.00027671,7]
[344021290,1733209846502,-503.45166271,0.00027671,7]
[344021291,1733209846512,-500.0,0.00027671,7]
[344021292,1733209846522,-500.0,0.00027671,7]
[344021293,1733209846533,-500.0,0.00027671,7]
[344021294,1733209846543,-433.32131233,0.00027671,7]
[344021295,1733209846553,-500.84080777,0.00027671,7]
[344021296,1733209846563,-500.0,0.00027671,7]
[344021297,1733209846572,-500.0,0.00027671,7]
[344021298,1733209846582,-648.41,0.00027671,7]
[344021299,1733209846592,-500.0,0.00027671,7]
[344021300,1733209846602,-500.0,0.00027671,7]
[344021301,1733209846612,-500.0,0.00027671,7]
[344021302,1733209846622,-424.67805847,0.00027671,7]
[344021303,1733209846632,-500.0,0.00027671,7]
[344021304,1733209846643,-200.0,0.00027671,7]
[344021305,1733209846652,-500.0,0.00027671,7]
[344021306,1733209846662,-7919.88,0.00027671,7]
[344021307,1733209846672,-500.0,0.00027671,7]
[344021308,1733209846682,-500.0,0.00027671,7]
[344021309,1733209846692,-507.09772011,0.00027671,7]
[344021310,1733209846702,-500.0,0.00027671,7]
[344021311,1733209846712,-508.86280911,0.00027671,7]
[344021312,1733209846722,-500.0,0.00027671,7]
[344021313,1733209846736,-500.0,0.00027671,7]
[344021314,1733209846746,-500.0,0.00027671,7]
[344021315,1733209846757,-516.04020489,0.00027671,7]
[344021316,1733209846767,-500.0,0.00027671,7]
[344021317,1733209846777,-500.0,0.00027671,7]
[344021318,1733209846787,-500.0,0.00027671,7]
[344021319,1733209846798,-500.0,0.00027671,7]
[344021320,1733209846808,-508.92629436,0.00027671,7]
[344021321,1733209846819,-500.0,0.00027671,7]
[344021322,1733209846828,-500.0,0.00027671,7]
[344021323,1733209846838,-507.02716042,0.00027671,7]
[344021324,1733209846848,-506.73233067,0.00027671,7]
[344021325,1733209846858,-500.0,0.00027671,7]
[344021326,1733209846868,-500.0,0.00027671,7]
[344021327,1733209846878,-508.72957453,0.00027671,7]
[344021328,1733209846887,-3362.04,0.00027671,7]
[344021329,1733209846897,-500.0,0.00027671,7]
[344021330,1733209846906,-827.86,0.00027671,7]
[344021331,1733209846916,-500.0,0.00027671,7]
[344021332,1733209846926,-500.0,0.00027671,7]
[344021333,1733209846935,-500.0,0.00027671,7]
[344021334,1733209846945,-500.0,0.00027671,7]
[344021335,1733209846955,-516.30457439,0.00027671,7]
[344021336,1733209846964,-547.00058052,0.00027671,7]
[344021337,1733209846974,-500.0,0.00027671,7]
[344021338,1733209846987,-500.0,0.00027671,7]
[344021339,1733209846997,-500.0,0.00027671,7]
[344021340,1733209847007,-500.0,0.00027671,7]
[344021341,1733209847016,-500.0,0.00027671,7]
[344021342,1733209847026,-504.9854407,0.00027671,7]
[344021343,1733209847036,-500.0,0.00027671,7]
[344021344,1733209847046,-559.53,0.00027671,7]
[344021345,1733209847057,-500.0,0.00027671,7]
[344021346,1733209847067,-507.55733575,0.00027671,7]
[344021347,1733209847077,-180.66951272,0.00027671,7]
[344021348,1733209847087,-585.59425305,0.00027671,7]
[344021349,1733209847097,-500.0,0.00027671,7]
[344021350,1733209847107,-502.77942144,0.00027671,7]
[344021351,1733209847117,-314.0,0.00027671,2]
[344021352,1733209847127,-161.0,0.00027671,2]
[344021353,1733209847136,-153.0,0.00027699,30]
[344021354,1733209847147,-153.0,0.00027699,30]
[344021355,1733209847162,-153.0,0.00027699,30]
[344021356,1733209847173,-504.0390979,0.00027921,5]
[344021357,1733209847183,-150.17,0.00027945,7]
[344021358,1733209847193,-509.44677657,0.00027945,7]
[344021359,1733209847202,-500.0,0.00027945,7]
[344021360,1733209847211,-500.0,0.00027945,7]
[344021361,1733209847221,-500.0,0.00027945,7]
[344021362,1733209847231,-402.8167856,0.00027945,7]
[344021363,1733209847245,-503.11020858,0.00027945,7]
[344021364,1733209847257,-500.0,0.00027945,7]
[344021365,1733209847266,-500.0,0.00027945,7]
[344021366,1733209847276,-518.78527956,0.00027945,7]
[344021367,1733209847287,-500.0,0.00027945,7]
[344021368,1733209847296,-500.0,0.00027945,7]
[344021369,1733209847306,-500.0,0.00027945,7]
[344021370,1733209847315,-500.0,0.00027945,7]
[344021371,1733209847325,-500.0,0.00027945,7]
[344021372,1733209847335,-500.0,0.00027945,7]
[344021373,1733209847344,-500.0,0.00027945,7]
[344021374,1733209847354,-500.0,0.00027945,7]
[344021375,1733209847364,-500.0,0.00027945,7]
[344021376,1733209847374,-547.91869106,0.00027945,7]
[344021377,1733209847384,-500.0,0.00027945,7]
[344021378,1733209847394,-500.0,0.00027945,7]
[344021379,1733209847405,-500.0,0.00027945,7]
[344021380,1733209847415,-506.95308298,0.00027945,7]
[344021381,1733209847424,-533.65180515,0.00027945,7]
[344021382,1733209847434,-500.0,0.00027945,7]
[344021383,1733209847444,-513.72155373,0.00027945,7]
[344021384,1733209847454,-500.0,0.00027945,7]
[344021385,1733209847463,-500.0,0.00027945,7]
[344021386,1733209847473,-500.0,0.00027945,2]
[344021387,1733209847485,-500.0,0.00027945,7]
[344021388,1733209847495,-483.36159737,0.00027945,7]
[344021389,1733209847505,-279.48500626,0.00027945,7]
[344021390,1733209847514,-500.0,0.00027945,7]
[344021391,1733209847525,-500.0,0.00027945,7]
[344021392,1733209847534,-501.3089353,0.00027945,7]
[344021393,1733209847543,-500.0,0.00027945,7]
[344021394,1733209847552,-500.0,0.00027945,7]
[344021395,1733209847562,-502.23264203,0.00027945,7]
[344021396,1733209847571,-513.73676882,0.00027945,7]
[344021397,1733209847581,-500.0,0.00027945,7]
[344021398,1733209847591,-500.0,0.00027945,7]
[344021399,1733209847601,-501.8012392,0.00027945,7]
[344021400,1733209847611,-573.87828204,0.00027945,7]
[344021401,1733209847621,-500.0,0.00027945,7]
[344021402,1733209847632,-500.0,0.00027945,7]
[344021403,1733209847642,-500.0,0.00027945,7]
[344021404,1733209847651,-513.35998197,0.00027945,7]
[344021405,1733209847661,-540.6,0.00027945,7]
[344021406,1733209847671,-340.7825412,0.00027945,7]
[344021407,1733209847681,-535.91272939,0.00027945,7]
[344021408,1733209847690,-173.3828838,0.00027945,7]
[344021409,1733209847700,-500.0,0.00027945,7]
[344021410,1733209847710,-500.0,0.00027945,7]
[344021411,1733209847720,-504.0747827,0.00027945,7]
[344021412,1733209847731,-500.0,0.00027945,7]
[344021413,1733209847743,-502.26649486,0.00027945,7]
[344021414,1733209847753,-500.0,0.00027945,7]
[344021415,1733209847763,-500.0,0.00027945,7]
[344021416,1733209847773,-500.0,0.00027945,7]
[344021417,1733209847783,-504.27089288,0.00027945,7]
[344021418,1733209847856,-501.09810119,0.00027945,7]
[344021419,1733209847865,-604.62884947,0.00027945,7]
[344021420,1733209847875,-500.0,0.00027945,7]
[344021421,1733209847884,-502.45314678,0.00027945,7]
[344021422,1733209847894,-501.43293974,0.00027945,7]
[344021423,1733209847903,-500.0,0.00027945,7]
[344021424,1733209847913,-501.84404072,0.00027945,7]
[344021425,1733209847923,-500.0,0.00027945,7]
[344021426,1733209847933,-640.61,0.00027945,7]
[344021427,1733209847942,-500.0,0.00027945,7]
[344021428,1733209847952,-500.0,0.00027945,7]
[344021429,1733209847962,-387.43756512,0.00027945,7]
[344021430,1733209847972,-500.0,0.00027945,7]
[344021431,1733209847982,-500.0,0.00027945,7]
[344021432,1733209848000,-500.0,0.00027945,7]
[344021433,1733209848011,-500.0,0.00027945,7]
[344021434,1733209848021,-500.0,0.00027945,7]
[344021435,1733209848032,-500.0,0.00027945,7]
[344021436,1733209848043,-501.96143301,0.00027945,7]
[344021437,1733209848054,-511.69728332,0.00027945,7]
[344021438,1733209848066,-500.0,0.00027945,7]
[344021439,1733209848076,-556.3816924,0.00027945,7]
[344021440,1733209848087,-509.91878066,0.00027945,7]
[344021441,1733209848102,-511.7834792,0.00027945,7]
[344021442,1733209848116,-500.0,0.00027945,7]
[344021443,1733209848127,-502.42039432,0.00027945,7]